bitfinex/quotes_ETHUSD_20251118
["timestamp","ask_amount","ask_price","bid_price","bid_amount"]
[1763449846531,0.4629,3009.6,3009.2,2.37684882]
[1763449847049,0.4629,3009.6,3009.2,1.78654737]
[1763449847246,0.04153513,3009.5,3009.1,1.78654737]
[1763449847449,0.04153513,3009.5,3009.0,1.78654737]
[1763449847750,0.04153513,3009.5,3009.1,1.78654737]
[1763449847751,0.7509,3009.4,3009.1,1.78654737]
[1763449848050,0.04153789,3009.3,3009.1,1.78654737]
[1763449848221,0.50443789,3009.3,3009.0,1.78654737]
[1763449848419,0.50443789,3009.3,3008.4,0.001]
[1763449848420,0.4629,3009.3,3008.8,1.78654737]
[1763449848620,0.288,3009.2,3008.9,1.78654737]
[1763449848842,0.1572,3009.7,3008.9,1.96520211]
[1763449849044,0.32953375,3009.6,3009.2,1.78654737]
[1763449849360,0.288,3009.5,3009.1,1.78654737]
[1763449849855,0.4629,3009.4,3009.1,1.78654737]
[1763449851247,1.199,3009.3,3009.1,1.78654737]
[1763449851768,0.4629,3009.2,3009.1,1.78654737]
[1763449852272,0.7359,3009.2,3009.1,1.78654737]
[1763449853061,0.77743927,3009.2,3009.0,1.78654737]
[1763449853252,0.4629,3009.1,3008.6,1.78654737]
[1763449853454,0.273,3008.7,3008.6,1.78654737]
[1763449853965,0.734,3008.7,3008.6,1.78654737]
[1763449854283,0.273,3008.7,3008.6,1.78654737]
[1763449854582,0.288,3008.7,3008.6,0.17875474]
[1763449854884,0.5628,3008.7,3008.6,0.17875474]
[1763449855093,0.5628,3008.7,3008.4,2.37784882]
[1763449855241,0.0046,3008.5,3008.4,0.001]
[1763449855678,0.4675,3008.5,3008.4,0.001]
[1763449855897,0.50904894,3008.5,3008.4,0.001]
[1763449856691,0.4675,3008.5,3008.4,0.001]
[1763449857099,0.0046,3008.5,3008.4,0.001]
[1763449857450,0.288,3008.5,3008.4,1.78953584]
[1763449857791,1.022,3008.5,3008.4,1.78953584]
[1763449857961,0.561,3008.5,3008.4,1.78953584]
[1763449860486,1.022,3008.5,3008.4,0.001]
[1763449860655,0.561,3008.5,3008.4,0.001]
[1763449861164,1.761,3008.5,3008.4,0.001]
[1763449861345,1.761,3008.5,3008.4,1.78830935]
[1763449861346,2.222,3008.5,3008.4,1.78830935]
[1763449861546,2.222,3008.5,3008.4,0.001]
[1763449862353,0.734,3008.5,3008.4,0.001]
[1763449862595,1.022,3008.5,3008.4,0.001]
[1763449862774,0.35838419,3008.5,3008.4,0.001]
[1763449863078,0.07038419,3008.5,3008.4,0.001]
[1763449863671,0.35838419,3008.5,3008.4,0.001]
[1763449863891,0.288,3008.5,3008.4,0.001]
[1763449864267,0.04153375,3009.6,3008.4,0.001]
[1763449864595,0.288,3009.5,3008.4,0.001]
[1763449864776,0.04153651,3009.4,3008.4,0.001]
[1763449864976,0.90699264,3008.9,3008.0,1.78830935]
[1763449865180,0.287,3008.8,3008.0,0.001]
[1763449866085,0.04154618,3008.7,3008.0,0.001]
[1763449866873,0.287,3008.8,3008.0,0.001]
[1763449867100,0.90699264,3009.3,3008.0,0.001]
[1763449867304,0.1572,3009.7,3008.2,0.405504]
[1763449867608,0.287,3009.6,3008.2,2.19281335]
[1763449867764,0.287,3009.6,3008.3,2.02597069]
[1763449867968,0.287,3009.5,3008.3,2.02597069]
[1763449868172,0.1572,3009.7,3008.5,2.19281335]
[1763449868485,0.287,3009.6,3009.3,1.78730935]
[1763449868686,0.287,3009.6,3009.3,0.17873093]
[1763449869005,0.287,3009.5,3009.4,1.78730935]
[1763449870278,0.287,3009.5,3009.2,1.78730935]
[1763449870465,0.287,3009.5,3009.3,1.78730935]
[1763449871198,0.287,3009.5,3008.3,0.68886134]
[1763449871199,1.2,3009.4,3009.0,1.78730935]
[1763449871500,0.04153789,3009.3,3009.1,1.78730935]
[1763449871685,1.2,3009.4,3009.0,1.78730935]
[1763449872264,0.1886,3010.0,3009.0,1.78730935]
[1763449872265,0.287,3009.3,3009.0,1.78730935]
[1763449872489,0.1886,3010.0,3009.2,1.78730935]
[1763449872677,0.1886,3010.0,3009.3,1.78828527]
[1763449872678,0.287,3009.9,3009.3,1.78828527]
[1763449872880,9.05867626,3009.4,3008.9,1.78828527]
[1763449873104,1.23553053,3009.3,3008.5,1.78828527]
[1763449873309,9.05867626,3008.6,3008.1,1.78828527]
[1763449873473,0.1886,3010.0,3008.0,0.001]
[1763449873474,0.287,3008.5,3008.0,0.001]
[1763449873674,0.90699264,3009.0,3008.1,1.78828527]
[1763449873908,0.287,3008.9,3008.5,1.19413784]
[1763449874069,0.287,3008.9,3008.0,0.001]
[1763449874070,0.0415448,3008.8,3008.4,1.19413784]
[1763449874275,0.0415448,3008.8,3008.3,1.19413784]
[1763449874468,0.287,3008.9,3008.3,1.19413784]
[1763449875024,0.287,3008.8,3008.4,1.19413784]
[1763449877411,0.287,3008.8,3008.3,1.19413784]
[1763449877569,0.002,3009.6,3008.4,1.19413784]
[1763449877769,0.002,3009.6,3008.2,1.78828527]
[1763449877770,9.05867626,3009.1,3008.8,1.19413784]
[1763449878123,1.19399264,3009.0,3008.7,1.19413784]
[1763449878471,1.19399264,3009.0,3008.6,1.19413784]
[1763449878672,0.287,3008.9,3008.6,1.19413784]
[1763449878890,0.287,3008.9,3008.7,1.19413784]
[1763449879287,0.90699264,3009.4,3008.6,1.19413784]
[1763449879488,0.287,3009.3,3008.7,1.19413784]
[1763449879887,0.287,3009.3,3008.6,1.19413784]
[1763449880440,0.287,3009.3,3008.7,1.19413784]
[1763449880606,0.287,3009.2,3008.7,1.19413784]
[1763449880937,0.287,3009.2,3008.8,1.19413784]
[1763449881136,3.30699264,3009.1,3008.8,1.19413784]
[1763449881935,0.002,3009.6,3008.9,1.19413784]
[1763449882224,0.287,3009.5,3008.9,1.19413784]
[1763449883222,0.94852915,3009.4,3008.9,1.19413784]
[1763449883530,0.90699264,3009.0,3008.8,1.19413784]
[1763449883830,0.287,3008.9,3008.8,1.19413784]
[1763449884033,0.5168,3008.9,3008.8,1.19413784]
[1763449885429,0.287,3008.9,3008.8,1.19413784]
[1763449886013,0.5168,3008.9,3008.8,1.19413784]
[1763449887752,0.002,3009.6,3008.8,1.97278015]
[1763449887905,0.287,3009.5,3009.2,1.19533485]
[1763449888110,0.287,3009.5,3009.4,1.19533485]
[1763449889244,0.287,3009.5,3009.3,1.19533485]
[1763449889245,0.90699264,3009.4,3009.3,1.19533485]
[1763449889447,0.90699264,3009.4,3008.9,1.19533485]
[1763449889751,0.002,3009.6,3009.0,1.19533485]
[1763449889752,0.287,3009.3,3009.0,1.19533485]
[1763449890128,0.002,3009.6,3009.0,1.19533485]
[1763449890318,0.287,3009.5,3009.0,1.19533485]
[1763449890745,0.287,3009.4,3009.0,1.19533485]
[1763449891148,2.4,3009.3,3009.0,1.19533485]
[1763449891734,1.487,3009.2,3009.0,1.19533485]
[1763449892861,1.487,3009.2,3008.9,1.19533485]
[1763449893477,1.487,3009.2,3009.1,1.19533485]
[1763449894038,0.002,3009.6,3009.1,1.43376201]
[1763449894344,0.002,3009.6,3009.5,1.67567654]
[1763449894530,0.289,3009.6,3009.5,3.72445282]
[1763449894856,0.002,3009.9,3009.5,0.9421]
[1763449895030,0.4684,3011.8,3010.2,0.598804]
[1763449895236,0.289,3010.3,3010.2,3.46555213]
[1763449895459,0.289,3010.3,3010.2,3.86830334]
[1763449895626,0.289,3010.3,3010.2,1.88745921]
[1763449895824,0.289,3010.3,3010.2,1.48195521]
[1763449896065,0.289,3010.3,3010.2,3.51678543]
[1763449896228,0.289,3010.3,3010.2,1.13038]
[1763449896431,0.289,3010.3,3010.2,3.92228943]
[1763449896432,0.002,3010.3,3010.2,3.92228943]
[1763449896662,0.002,3010.3,3010.2,1.535884]
[1763449896663,0.139,3010.3,3010.2,1.535884]
[1763449896834,0.139,3010.3,3010.2,1.98776592]
[1763449897028,0.139,3010.3,3010.2,1.535884]
[1763449898069,0.139,3010.3,3010.2,3.91807935]
[1763449898271,0.139,3010.3,3010.2,1.13038]
[1763449898474,0.1979,3011.8,3010.3,0.405504]
[1763449898679,0.287,3011.7,3011.2,1.19008525]
[1763449898844,0.287,3011.7,3011.3,1.19008525]
[1763449899047,0.2755,3012.9,3011.6,1.65088525]
[1763449899248,9.62117626,3012.8,3011.6,1.65088525]
[1763449899475,0.90699264,3012.7,3011.6,1.65088525]
[1763449899649,1.19379264,3012.7,3011.6,1.63958525]
[1763449900171,0.2868,3012.6,3011.6,0.4495]
[1763449900381,0.32829239,3012.6,3011.6,0.4495]
[1763449900532,0.2868,3012.6,3011.6,0.4495]
[1763449901145,3.30699264,3012.5,3011.6,0.4495]
[1763449902090,3.30699264,3012.5,3011.1,0.191]
[1763449902091,0.1127,3011.7,3011.1,0.191]
[1763449902265,9.34547626,3012.4,3011.1,0.191]
[1763449902266,1.199,3011.6,3011.2,0.4576]
[1763449902464,0.287,3011.5,3011.2,0.64146853]
[1763449902854,0.04149239,3012.6,3011.4,0.4608]
[1763449903054,0.1127,3011.9,3011.1,1.38108525]
[1763449903285,0.287,3011.8,3011.1,0.191]
[1763449904097,0.04150479,3011.7,3010.9,0.191]
[1763449904268,0.287,3011.8,3010.9,0.191]
[1763449905287,0.2868,3011.7,3010.6,1.19008525]
[1763449905471,0.2868,3011.7,3010.2,0.18828]
[1763449905472,0.0026,3010.9,3010.2,0.18828]
[1763449905672,0.287,3010.8,3010.2,0.18828]
[1763449905877,0.287,3010.8,3010.1,0.191]
[1763449907508,0.2606,3010.2,3009.5,1.38108525]
[1763449907670,0.2606,3010.2,3009.3,2.24272788]
[1763449907671,9.05867626,3009.9,3008.9,1.19008525]
[1763449907874,9.05867626,3009.9,3008.8,0.191]
[1763449907875,0.6464,3009.8,3008.8,0.191]
[1763449908391,1.55339264,3009.8,3008.8,0.191]
[1763449908699,0.2606,3008.9,3008.4,0.001]
[1763449908884,0.287,3008.8,3008.4,0.001]
[1763449909084,0.2606,3008.9,3008.4,0.001]
[1763449909284,0.287,3008.8,3008.4,0.001]
[1763449909880,0.2868,3008.5,3008.4,0.001]
[1763449910175,0.32834894,3008.5,3008.4,0.001]
[1763449910409,0.32834894,3008.5,3008.1,0.001]
[1763449910410,0.58794894,3008.5,3008.1,0.001]
[1763449910619,9.9656689,3008.2,3007.8,0.001]
[1763449910765,9.9656689,3008.2,3007.7,0.001]
[1763449910766,9.9656689,3007.8,3007.7,0.001]
[1763449910970,0.90699264,3007.8,3007.7,0.001]
[1763449911600,1.19399264,3007.8,3007.7,0.001]
[1763449912575,10.29422751,3007.8,3007.7,0.001]
[1763449912800,10.2526689,3007.8,3007.7,0.001]
[1763449913206,10.5364689,3007.8,3007.7,0.001]
[1763449913405,9.9656689,3007.8,3007.7,0.001]
[1763449913604,10.2526689,3007.8,3007.7,0.001]
[1763449913772,10.5364689,3007.8,3007.7,0.001]
[1763449915725,10.2526689,3007.8,3007.7,0.001]
[1763449916015,10.5364689,3007.8,3007.7,0.001]
[1763449917204,10.7999689,3007.8,3007.7,0.001]
[1763449919109,10.5129689,3007.8,3007.7,0.001]
[1763449919317,10.7999689,3007.8,3007.7,0.001]
[1763449920216,0.90699264,3007.8,3007.7,0.001]
[1763449920381,0.287,3007.8,3007.7,0.001]
[1763449920931,0.87565861,3007.8,3007.7,0.001]
[1763449921085,0.90699264,3006.9,3006.6,0.001]
[1763449921411,0.1022,3006.7,3006.6,0.001]
[1763449921818,0.385,3006.7,3006.6,0.001]
[1763449922022,0.1022,3006.7,3006.6,0.001]
[1763449922192,0.3874,3006.7,3006.6,0.001]
[1763449922515,0.6519,3006.7,3006.6,0.001]
[1763449922720,0.6519,3006.7,3006.3,0.001]
[1763449922721,0.9345,3006.7,3006.3,0.001]
[1763449922933,0.405504,3006.5,3004.3,0.4576]
[1763449923147,0.90699264,3004.6,3003.5,0.191]
[1763449923318,0.90699264,3004.7,3004.1,0.6486]
[1763449923618,0.405504,3006.1,3004.1,0.6486]
[1763449923619,0.287,3004.6,3004.1,0.6486]
[1763449923919,0.287,3004.6,3004.1,0.191]
[1763449924131,0.94858305,3005.5,3004.1,0.191]
[1763449924132,0.287,3004.5,3004.2,0.4576]
[1763449924421,8.58634267,3006.2,3005.1,0.191]
[1763449924623,0.288,3006.1,3005.1,0.191]
[1763449924782,0.288,3006.0,3005.2,0.4576]
[1763449924987,0.288,3006.0,3005.1,0.191]
[1763449924988,0.90699264,3005.6,3005.1,0.191]
[1763449925188,0.90699264,3005.6,3005.1,0.6486]
[1763449925422,0.288,3005.5,3005.1,0.6486]
[1763449925608,0.288,3005.4,3005.2,0.4576]
[1763449925918,0.288,3005.3,3005.2,0.4576]
[1763449927226,8.58634267,3006.5,3005.2,0.4576]
[1763449927413,0.288,3006.4,3005.2,0.4576]
[1763449927616,1.19499264,3006.4,3005.2,0.4576]
[1763449927913,0.90699264,3006.4,3005.2,0.4576]
[1763449928112,0.287,3006.3,3005.2,0.4576]
[1763449929125,0.90699264,3006.0,3005.2,0.4576]
[1763449929493,0.90699264,3006.4,3005.2,0.4576]
[1763449929701,0.1004,3006.7,3005.2,0.4576]
[1763449929702,0.288,3006.3,3005.2,0.4576]
[1763449930228,0.32957935,3006.3,3005.2,0.4576]
[1763449931339,2.402,3006.2,3005.2,0.4576]
[1763449931506,0.94857475,3006.1,3005.2,0.4576]
[1763449932812,0.04158211,3006.1,3005.2,0.4576]
[1763449933149,2.69,3006.0,3005.2,0.4576]
[1763449933495,3.59699264,3006.0,3005.9,0.4625]
[1763449934123,2.39499264,3006.0,3005.9,0.4625]
[1763449934326,2.39499264,3006.0,3005.6,0.4827]
[1763449935128,2.39499264,3006.0,3005.9,0.4625]
[1763449935715,2.39499264,3006.0,3005.1,0.192]
[1763449935918,2.39499264,3006.0,3005.2,0.4827]
[1763449936125,0.04158488,3005.9,3005.2,0.4827]
[1763449936916,0.94857752,3005.9,3005.2,0.66917853]
[1763449937135,1.488,3006.0,3005.2,1.67278525]
[1763449937327,0.90699264,3005.8,3005.2,0.4827]
[1763449937525,0.90699264,3005.8,3005.3,0.4827]
[1763449937726,0.287,3005.7,3005.3,0.4827]
[1763449939644,0.90699264,3006.2,3005.6,0.4914]
[1763449939847,0.287,3006.1,3005.6,0.4914]
[1763449940049,0.287,3006.1,3005.6,0.9903]
[1763449940648,0.287,3006.1,3005.6,0.4914]
[1763449940837,0.002,3006.4,3006.0,0.4914]
[1763449941148,0.002,3006.4,3005.7,1.68898525]
[1763449941149,1.488,3006.3,3006.1,0.4914]
[1763449941336,2.39499264,3006.3,3005.8,1.68898525]
[1763449941644,1.488,3006.3,3006.2,0.6841]
[1763449942147,1.488,3006.3,3006.2,1.183]
[1763449943249,0.002,3006.4,3006.2,1.183]
[1763449943450,0.002,3006.4,3006.3,0.9903]
[1763449943626,0.289,3006.4,3006.3,0.4914]
[1763449945143,0.289,3006.4,3006.3,2.77542788]
[1763449946967,0.289,3006.4,3006.3,3.07224067]
[1763449947169,0.289,3006.4,3006.3,2.77542788]
[1763449948667,0.289,3006.4,3006.3,0.9903]
[1763449950385,0.002,3007.1,3006.4,0.405504]
[1763449950546,0.002,3007.1,3006.8,0.405504]
[1763449950748,0.287,3007.0,3006.8,2.38864626]
[1763449950958,0.287,3007.0,3006.9,1.79163285]
[1763449951158,1.488,3007.0,3006.9,1.79163285]
[1763449951358,1.488,3007.0,3006.8,1.79163285]
[1763449953358,0.287,3007.0,3006.9,1.79163285]
[1763449955659,0.5708,3007.0,3006.9,1.79163285]
[1763449956566,0.5708,3007.0,3006.9,1.19424364]
[1763449956567,0.8343,3007.0,3006.9,1.19424364]
[1763449956765,0.8343,3007.0,3006.8,1.19424364]
[1763449956984,0.1004,3006.9,3006.8,1.19424364]
[1763449957160,0.384,3006.9,3006.8,1.19424364]
[1763449957482,0.384,3006.9,3006.8,1.19428203]
[1763449958312,0.6477,3006.9,3006.7,1.79163285]
[1763449958494,0.384,3006.9,3006.8,1.19425891]
[1763449959069,0.002,3007.1,3006.8,1.66655891]
[1763449959274,0.002,3007.1,3007.0,1.19424345]
[1763449959579,0.289,3007.1,3007.0,1.19424345]
[1763449960374,0.002,3007.1,3007.0,2.14844345]
[1763449960587,0.289,3007.1,3007.0,2.74543382]
[1763449960794,0.289,3007.1,3007.0,1.19422566]
[1763449960965,0.289,3007.1,3006.9,1.19422566]
[1763449961165,1.201,3007.0,3006.7,1.79123382]
[1763449961397,1.201,3007.0,3006.8,1.79123382]
[1763449962102,0.289,3007.1,3006.8,1.79123382]
[1763449962310,0.002,3007.1,3007.0,1.19435926]
[1763449962472,0.289,3007.1,3007.0,1.19435926]
[1763449963290,0.5525,3007.1,3007.0,1.19435926]
[1763449963883,0.87766828,3007.1,3006.9,1.19435926]
[1763449964094,0.2838,3007.0,3006.9,1.19435926]
[1763449964472,0.27715247,3007.0,3006.9,1.19435926]
[1763449966075,0.01565247,3007.0,3006.9,1.19435926]
[1763449966420,0.002,3007.0,3006.9,0.4723]
[1763449966578,0.289,3007.0,3006.9,0.9542]
[1763449966771,0.289,3007.0,3006.8,0.001]
[1763449967374,0.0137,3006.9,3006.8,1.79491607]
[1763449968371,0.0137,3006.9,3006.8,0.001]
[1763449968810,0.0274,3006.9,3006.8,1.79589678]
[1763449969048,0.0137,3006.9,3006.8,1.79589678]
[1763449969525,0.0274,3006.9,3006.8,1.79589678]
[1763449969681,0.289,3007.0,3006.8,1.79589678]
[1763449969882,0.0137,3006.9,3006.8,1.79589678]
[1763449970403,0.93439264,3006.9,3006.8,1.79589678]
[1763449970738,1.20769264,3006.9,3006.8,1.19929303]
[1763449971227,3.62339264,3006.9,3006.8,0.001]
[1763449971887,3.60969264,3006.9,3006.8,0.001]
[1763449972927,0.92069264,3006.9,3006.8,0.001]
[1763449973130,2.40869264,3006.9,3006.8,0.001]
[1763449973331,0.287,3006.9,3006.8,0.001]
[1763449974362,0.287,3006.9,3006.8,1.19924492]
[1763449975019,0.3007,3006.9,3006.8,1.19924492]
[1763449976319,0.287,3006.9,3006.8,1.19924492]
[1763449976928,0.002,3007.0,3006.8,1.19924492]
[1763449977127,0.287,3006.9,3006.8,1.19924492]
[1763449977538,0.3007,3006.9,3006.8,1.19924492]
[1763449979326,1.20769264,3006.9,3006.8,1.19924492]
[1763449979761,0.287,3006.9,3006.8,1.67154492]
[1763449979923,0.287,3006.9,3006.8,0.4733]
[1763449980122,0.287,3006.9,3006.8,1.19872173]
[1763449980324,0.002,3007.0,3006.8,1.19872173]
[1763449980567,0.002,3007.0,3006.9,2.74909678]
[1763449980877,0.002,3007.0,3006.9,1.22920968]
[1763449980878,0.289,3007.0,3006.9,1.22920968]
[1763449981076,0.289,3007.0,3006.8,0.001]
[1763449981225,0.289,3007.0,3006.8,1.19867347]
[1763449981226,0.93439264,3006.9,3006.8,1.19867347]
[1763449981424,0.92069264,3006.9,3006.8,0.001]
[1763449981928,0.90699264,3006.9,3006.8,0.001]
[1763449982128,0.002,3007.0,3006.8,0.001]
[1763449982431,0.002,3007.0,3006.8,1.19867347]
[1763449982857,0.287,3006.9,3006.8,1.19867347]
[1763449983659,0.287,3006.9,3006.8,2.26966291]
[1763449984130,0.002,3007.0,3006.8,0.9552]
[1763449984336,0.002,3007.0,3006.9,0.4723]
[1763449984537,0.289,3007.0,3006.9,0.4723]
[1763449984840,0.002,3007.0,3006.9,0.9542]
[1763449985045,0.289,3007.0,3006.9,1.28858463]
[1763449985726,0.289,3007.0,3006.9,3.67723089]
[1763449986127,0.289,3007.0,3006.9,1.28858463]
[1763449986326,0.289,3007.0,3006.9,0.4723]
[1763449986561,0.289,3007.0,3006.8,0.001]
[1763449986733,0.289,3007.0,3006.9,0.9129]
[1763449988443,0.289,3007.0,3006.8,0.001]
[1763449988629,0.289,3007.0,3006.8,2.38964626]
[1763449988834,0.289,3007.0,3006.8,0.001]
[1763449989172,0.04157105,3006.9,3006.8,0.001]
[1763449989473,0.0137,3006.9,3006.8,0.001]
[1763449989767,0.0137,3006.9,3006.8,1.79863782]
[1763449990170,0.289,3007.0,3006.8,1.79863782]
[1763449990873,0.002,3007.0,3006.8,1.79863782]
[1763449991037,0.287,3006.9,3006.8,0.001]
[1763449991236,3.59599264,3006.9,3006.8,0.001]
[1763449991469,3.59599264,3006.9,3006.8,1.79901231]
[1763449991690,3.9696919,3006.9,3006.8,1.79901231]
[1763449992378,3.9696919,3006.9,3006.8,1.79898797]
[1763449992582,3.59599264,3006.9,3006.8,0.001]
[1763449993193,10.33845319,3006.9,3006.8,1.79917269]
[1763449993506,10.29688214,3006.9,3006.8,0.001]
[1763449994673,9.98248214,3006.5,3006.4,0.001]
[1763449994994,10.28318214,3006.5,3006.4,0.001]
[1763449995168,10.29688214,3006.5,3006.4,0.001]
[1763449995370,10.28318214,3006.5,3006.4,0.001]
[1763449995594,1.19399264,3006.5,3006.4,0.001]
[1763449995759,0.90699264,3006.5,3006.4,1.6533146]
[1763449995963,1.19399264,3006.5,3006.4,0.9139]
[1763449996165,0.287,3006.5,3006.4,2.71207269]
[1763449996360,10.28318214,3006.5,3006.4,1.79917269]
[1763449996576,10.28318214,3006.5,3006.4,0.001]
[1763449996773,10.26948214,3006.5,3006.4,0.001]
[1763449997202,10.28318214,3006.5,3006.4,0.001]
[1763449997365,9.98248214,3006.5,3006.4,0.001]
[1763449997701,10.26948214,3006.5,3006.4,1.19929121]
[1763449998197,10.28318214,3006.5,3006.4,0.001]
[1763449998709,1.19399264,3006.5,3006.4,0.001]
[1763449999219,1.19399264,3006.5,3006.4,1.19929121]
[1763449999377,1.19399264,3006.5,3006.4,0.001]
[1763449999819,0.002,3007.0,3006.4,0.9506]
[1763449999993,0.287,3006.9,3006.7,1.19829121]
[1763450000317,0.287,3006.9,3006.4,0.9506]
[1763450000318,1.19399264,3006.9,3006.6,1.19829121]
[1763450001179,3.30899264,3006.8,3006.6,1.19829121]
[1763450001381,2.402,3006.8,3006.6,1.19829121]
[1763450002206,2.402,3006.8,3006.7,1.19829121]
[1763450004811,1.201,3006.8,3006.7,1.19829121]
[1763450006824,1.201,3006.8,3006.6,1.79917269]
[1763450007025,0.287,3006.9,3006.6,2.24957269]
[1763450007188,0.287,3006.9,3006.8,1.19772331]
[1763450008323,0.002,3007.0,3006.8,2.74777269]
[1763450008530,0.002,3007.0,3006.9,0.9496]
[1763450008722,0.289,3007.0,3006.9,0.9496]
[1763450009830,0.002,3007.0,3006.9,1.355104]
[1763450010030,0.002,3007.0,3006.9,0.9496]
[1763450010031,0.289,3007.0,3006.9,0.9496]
[1763450010322,0.289,3007.0,3006.9,1.34285352]
[1763450011199,1.49,3007.0,3006.9,1.74835752]
[1763450017635,1.49,3007.0,3006.9,2.38844885]
[1763450017967,0.289,3007.0,3006.9,0.9454]
[1763450018350,0.3027,3007.0,3006.9,1.79153605]
[1763450018642,0.3027,3007.0,3006.6,0.001]
[1763450018643,0.3027,3007.0,3006.8,1.19442773]
[1763450019133,0.289,3007.0,3006.8,1.19442773]
[1763450019650,0.0137,3006.9,3006.7,1.19442773]
[1763450019939,0.287,3006.8,3006.7,1.19442773]
[1763450020505,0.3007,3006.8,3006.7,1.19442773]
[1763450020730,0.287,3006.8,3006.7,1.19442773]
[1763450021105,2.689,3006.8,3006.7,1.19442773]
[1763450021739,1.488,3006.8,3006.7,0.9454]
[1763450021962,1.488,3006.8,3006.7,1.19448783]
[1763450022646,0.287,3006.8,3006.7,1.19448783]
[1763450023409,0.287,3006.8,3006.7,1.64498783]
[1763450023609,0.287,3006.8,3006.7,0.4505]
[1763450023915,0.287,3006.8,3006.7,1.19449303]
[1763450024311,0.002,3007.0,3006.7,1.19449303]
[1763450024538,0.287,3006.8,3006.7,1.19449303]
[1763450025043,0.002,3007.0,3006.9,0.4505]
[1763450025211,0.289,3007.0,3006.9,1.64516897]
[1763450025412,0.289,3007.0,3006.6,0.001]
[1763450025413,0.289,3007.0,3006.8,1.19466897]
[1763450027855,0.289,3007.0,3006.9,1.64516897]
[1763450028055,0.002,3007.0,3006.9,2.73693605]
[1763450028257,0.289,3007.0,3006.9,3.01196293]
[1763450028564,0.289,3007.0,3006.9,1.21909361]
[1763450028849,0.289,3007.0,3006.9,3.60754246]
[1763450030263,0.002,3007.0,3006.9,4.01304646]
[1763450030468,0.108,3007.0,3006.9,1.62459761]
[1763450030765,0.108,3007.0,3006.9,1.350904]
[1763450031140,1.309,3007.0,3006.9,1.350904]
[1763450032672,1.309,3007.0,3006.9,0.9454]
[1763450033164,1.309,3007.0,3006.9,0.4505]
[1763450033364,1.309,3007.0,3006.9,0.9454]
[1763450033947,1.309,3007.0,3006.9,2.84220924]
[1763450034347,1.309,3007.0,3006.9,2.39170924]
[1763450034569,1.309,3007.0,3006.6,0.4959]
[1763450034570,1.3227,3007.0,3006.7,2.39170924]
[1763450034751,1.309,3007.0,3006.9,0.9454]
[1763450034951,1.309,3007.0,3006.6,2.39270924]
[1763450035143,0.002,3007.0,3006.6,2.88760924]
[1763450035346,0.287,3006.9,3006.6,2.88760924]
[1763450035674,0.287,3006.9,3006.6,2.39270924]
[1763450036055,0.287,3006.9,3006.6,0.001]
[1763450036260,0.287,3006.9,3006.8,1.79483477]
[1763450037054,0.3007,3006.9,3006.8,1.19682779]
[1763450037265,0.3007,3006.9,3006.7,1.19682779]
[1763450037744,0.0137,3006.8,3006.7,1.19682779]
[1763450038293,0.0137,3006.8,3006.6,0.001]
[1763450038294,0.93439264,3006.8,3006.6,1.19782779]
[1763450038439,0.0137,3006.7,3006.6,0.001]
[1763450038639,0.0274,3006.7,3006.6,0.001]
[1763450040374,0.06897381,3006.7,3006.6,0.001]
[1763450040894,0.0137,3006.4,3006.1,0.001]
[1763450041061,0.0137,3006.4,3005.6,1.79583477]
[1763450041062,0.0137,3006.1,3005.6,0.001]
[1763450041380,9.99618214,3005.7,3005.6,0.001]
[1763450041582,10.29688214,3005.7,3005.6,0.001]
[1763450042369,9.99618214,3005.7,3005.6,0.001]
[1763450042582,10.29688214,3005.7,3005.6,0.001]
[1763450043476,10.70238614,3005.7,3005.6,0.001]
[1763450043783,10.70238614,3005.7,3005.1,0.001]
[1763450043784,1.31249664,3005.6,3005.1,0.001]
[1763450044081,9.99618214,3005.2,3005.1,0.001]
[1763450044250,10.28318214,3005.2,3005.1,0.001]
[1763450044454,10.29688214,3005.2,3005.1,0.001]
[1763450044654,10.28318214,3005.2,3005.1,0.001]
[1763450045370,10.29688214,3005.2,3005.1,0.001]
[1763450045856,1.31249664,3005.1,3004.8,0.001]
[1763450046055,0.0137,3004.9,3004.8,0.001]
[1763450046290,0.0274,3004.9,3004.8,0.001]
[1763450046784,8.89003769,3004.9,3004.8,0.001]
[1763450046960,9.81073033,3004.9,3004.8,0.001]
[1763450047151,0.92069264,3004.9,3004.8,0.001]
[1763450047350,0.90699264,3004.9,3004.8,0.001]
[1763450047553,1.19399264,3004.9,3004.8,0.001]
[1763450048672,0.90699264,3004.9,3004.8,0.001]
[1763450048873,1.19399264,3004.9,3004.8,0.001]
[1763450049858,1.20769264,3004.9,3004.8,0.001]
[1763450050259,1.19399264,3004.9,3004.8,0.001]
[1763450051190,3.59599264,3004.9,3004.8,0.001]
[1763450053073,3.59599264,3004.9,3004.8,0.4769]
[1763450053271,2.39499264,3004.9,3004.8,0.4769]
[1763450054600,1.19399264,3004.9,3004.8,0.001]
[1763450054986,1.20769264,3004.9,3004.8,0.001]
[1763450055547,1.19399264,3004.9,3004.8,0.9718]
[1763450056485,0.90699264,3004.9,3004.8,0.9718]
[1763450056684,1.19399264,3004.9,3004.8,0.9718]
[1763450057996,0.90699264,3004.9,3004.8,0.9718]
[1763450058201,0.287,3004.9,3004.8,0.9718]
[1763450058503,0.002,3005.2,3004.8,0.9718]
[1763450058690,0.002,3005.6,3005.1,0.6569]
[1763450058895,0.002,3005.6,3005.5,0.4759]
[1763450059206,0.289,3005.6,3005.5,0.4759]